fUST/lending_fUST_20250619
["ID","MTS","AMOUNT","RATE_DAILY","PERIOD"]
[366525736,1750303837307,-460.0,0.00022191,6]
[366525737,1750303837318,-460.0,0.00022191,6]
[366525738,1750303837327,-460.0,0.00022191,6]
[366525739,1750303837337,-417.80916846,0.00022191,6]
[366525741,1750303837348,-460.0,0.00022191,6]
[366525742,1750303837358,-486.36,0.00022191,6]
[366525743,1750303837368,-460.0,0.00022191,6]
[366525744,1750303837377,-2156.56,0.00022191,6]
[366525745,1750303837386,-460.0,0.00022191,6]
[366525746,1750303837395,-460.0,0.00022191,6]
[366525747,1750303837404,-460.0,0.00022191,6]
[366525748,1750303837413,-1114.64,0.00022191,6]
[366525749,1750303837422,-430.0,0.00022191,6]
[366525750,1750303837431,-460.0,0.00022191,6]
[366525751,1750303837441,-460.0,0.00022191,6]
[366525752,1750303837450,-460.0,0.00022191,6]
[366525753,1750303837459,-460.0,0.00022191,6]
[366525754,1750303837468,-300.0,0.00022191,2]
[366525755,1750303837479,-418.06887411,0.00022191,6]
[366525756,1750303837488,-460.0,0.00022191,6]
[366525757,1750303837497,-460.0,0.00022191,6]
[366525758,1750303837507,-421.9347268,0.00022191,6]
[366525759,1750303837515,-460.0,0.00022191,6]
[366525760,1750303837525,-460.0,0.00022191,6]
[366525761,1750303837534,-460.0,0.00022191,6]
[366525762,1750303837543,-460.0,0.00022191,6]
[366525763,1750303837553,-155.22755187,0.00022191,6]
[366525764,1750303837562,-1348.12,0.00022191,6]
[366525766,1750303837572,-460.0,0.00022191,6]
[366525768,1750303837581,-460.0,0.00022191,6]
[366525769,1750303837591,-889.14,0.00022191,6]
[366525770,1750303837601,-460.0,0.00022191,6]
[366525771,1750303837610,-460.0,0.00022191,6]
[366525772,1750303837620,-600.34588444,0.00022191,6]
[366525773,1750303837630,-460.0,0.00022191,6]
[366525774,1750303837641,-460.0,0.00022191,6]
[366525775,1750303837651,-460.0,0.00022191,6]
[366525776,1750303837660,-406.95569456,0.00022191,6]
[366525777,1750303837669,-2826.02,0.00022191,6]
[366525779,1750303837678,-460.0,0.00022191,6]
[366525780,1750303837688,-472.38,0.00022191,6]
[366525783,1750303837697,-460.0,0.00022191,6]
[366525784,1750303837706,-202.94598493,0.00022191,6]
[366525786,1750303837717,-460.0,0.00022191,6]
[366525788,1750303837727,-541.24,0.00022191,6]
[366525790,1750303837737,-460.0,0.00022191,6]
[366525792,1750303837746,-678.41,0.00022191,6]
[366525794,1750303837755,-460.0,0.00022191,6]
[366525796,1750303837765,-2648.85,0.00022191,6]
[366525798,1750303837775,-460.0,0.00022191,6]
[366525800,1750303837785,-346.23688875,0.00022191,6]
[366525802,1750303837796,-1454.91,0.000222,7]
[366525804,1750303837806,-68561.76,0.000222,7]
[366525806,1750303837816,-195.66472077,0.000222,69]
[366525808,1750303837826,-321.14048195,0.00022281,2]
[366525811,1750303837837,-150.0,0.000224,2]
[366525813,1750303837848,-160.0,0.00022464,2]
[366525815,1750303837858,-577.13978153,0.00022464,6]
[366525817,1750303837867,-500.0,0.00022465,6]
[366525819,1750303837877,-5000.0,0.00022465,2]
[366525820,1750303837886,-207.4,0.00022465,2]
[366525822,1750303837895,-500.0,0.00022465,2]
[366525824,1750303837905,-500.0,0.00022465,2]
[366525826,1750303837914,-500.0,0.00022465,2]
[366525828,1750303837924,-500.0,0.00022465,2]
[366525830,1750303837934,-500.0,0.00022465,2]
[366525832,1750303837943,-500.0,0.00022465,2]
[366525834,1750303837952,-500.0,0.00022465,2]
[366525836,1750303837961,-500.0,0.00022465,2]
[366525839,1750303837980,-500.0,0.00022465,2]
[366525841,1750303837990,-500.0,0.00022465,2]
[366525843,1750303838000,-500.0,0.00022465,2]
[366525845,1750303838011,-500.0,0.00022465,2]
[366525847,1750303838020,-500.0,0.00022465,2]
[366525849,1750303838030,-500.0,0.00022465,2]
[366525851,1750303838040,-500.0,0.00022465,2]
[366525853,1750303838049,-500.0,0.00022465,2]
[366525855,1750303838058,-500.0,0.00022465,2]
[366525857,1750303838068,-500.0,0.00022465,2]
[366525859,1750303838078,-500.0,0.00022465,2]
[366525861,1750303838087,-500.0,0.00022465,2]
[366525863,1750303838097,-500.0,0.00022465,2]
[366525865,1750303838107,-460.0,0.00022465,6]
[366525867,1750303838116,-460.0,0.00022465,6]
[366525869,1750303838126,-460.0,0.00022465,6]
[366525871,1750303838136,-460.0,0.00022465,6]
[366525873,1750303838145,-182.85162516,0.00022465,6]
[366525875,1750303838155,-460.0,0.00022465,6]
[366525877,1750303838164,-460.0,0.00022465,6]
[366525879,1750303838174,-378.28098855,0.00022465,6]
[366525881,1750303838187,-373.07325901,0.00022465,6]
[366525883,1750303838197,-341.29193099,0.00022465,6]
[366525885,1750303838206,-460.0,0.00022465,6]
[366525887,1750303838215,-373.66642742,0.00022465,6]
[366525889,1750303838229,-460.0,0.00022465,6]
[366525891,1750303838239,-460.0,0.00022465,6]
[366525893,1750303838248,-460.0,0.00022465,6]
[366525895,1750303838257,-460.0,0.00022465,6]
[366525897,1750303838268,-460.0,0.00022465,6]
[366525899,1750303838277,-460.0,0.00022465,6]
[366525901,1750303838287,-460.0,0.00022465,6]
[366525903,1750303838296,-460.0,0.00022465,6]
[366525905,1750303838306,-167.50055988,0.00022465,6]
[366525907,1750303838315,-372.46840768,0.00022465,6]
[366525909,1750303838324,-460.0,0.00022465,6]
[366525910,1750303838334,-3065.16,0.00022465,6]
[366525911,1750303838343,-373.93090182,0.00022465,6]
[366525912,1750303838353,-460.0,0.00022465,6]
[366525913,1750303838362,-460.0,0.00022465,6]
[366525914,1750303838371,-445.00232136,0.00022465,6]
[366525915,1750303838381,-460.0,0.00022465,6]
[366525916,1750303838390,-474.54,0.00022465,6]
[366525917,1750303838399,-460.0,0.00022465,6]
[366525918,1750303838408,-460.0,0.00022465,6]
[366525919,1750303838418,-460.0,0.00022465,6]
[366525920,1750303838427,-460.0,0.00022465,6]
[366525921,1750303838436,-500.0,0.00022465,6]
[366525922,1750303838445,-460.0,0.00022465,6]
[366525923,1750303838454,-386.69191019,0.00022465,6]
[366525924,1750303838463,-460.0,0.00022465,6]
[366525925,1750303838473,-460.0,0.00022465,6]
[366525926,1750303838483,-460.0,0.00022465,6]
[366525927,1750303838492,-460.0,0.00022465,6]
[366525928,1750303838501,-704.49,0.00022465,6]
[366525929,1750303838510,-314.484381,0.00022465,6]
[366525930,1750303838519,-460.0,0.00022465,6]
[366525931,1750303838528,-460.0,0.00022465,6]
[366525932,1750303838537,-460.0,0.00022465,6]
[366525933,1750303838547,-530.22664354,0.00022465,6]
[366525934,1750303838556,-460.0,0.00022465,6]
[366525935,1750303838565,-460.0,0.00022465,6]
[366525936,1750303838574,-460.0,0.00022465,6]
[366525937,1750303838584,-460.0,0.00022465,6]
[366525938,1750303838593,-460.0,0.00022465,6]
[366525939,1750303838606,-460.0,0.00022465,6]
[366525940,1750303838615,-460.0,0.00022465,6]
[366525941,1750303838624,-460.0,0.00022465,6]
[366525942,1750303838635,-460.0,0.00022465,6]
[366525943,1750303838645,-460.0,0.00022465,6]
[366525944,1750303838654,-2365.35,0.00022465,6]
[366525945,1750303838663,-460.0,0.00022465,6]
[366525946,1750303838673,-460.0,0.00022465,6]
[366525948,1750303838682,-460.0,0.00022465,6]
[366525949,1750303838691,-460.0,0.00022465,6]
[366525950,1750303838701,-460.0,0.00022465,6]
[366525951,1750303838710,-460.0,0.00022465,6]
[366525953,1750303838720,-460.0,0.00022465,6]
[366525955,1750303838730,-3205.54,0.00022465,6]
[366525957,1750303838739,-434.89114875,0.00022465,6]
[366525959,1750303838749,-2170.71,0.00022465,6]
[366525961,1750303838759,-460.0,0.00022465,6]
[366525963,1750303838769,-460.0,0.00022465,6]
[366525965,1750303838779,-460.0,0.00022465,6]
[366525967,1750303838789,-460.0,0.00022465,6]
[366525970,1750303838799,-460.0,0.00022465,6]
[366525972,1750303838809,-2919.94,0.00022465,6]
[366525974,1750303838819,-460.0,0.00022465,6]
[366525976,1750303838829,-2546.53,0.00022465,6]
[366525978,1750303838839,-709.64,0.00022465,6]
[366525980,1750303838849,-460.0,0.00022465,6]
[366525982,1750303838859,-783.12,0.00022465,6]
[366525984,1750303838869,-164.03777241,0.00022465,6]
[366525986,1750303838879,-668.43,0.00022465,6]
[366525988,1750303838889,-414.11102821,0.00022465,6]
[366525990,1750303838898,-962.97,0.00022465,6]
[366525992,1750303838910,-460.0,0.00022465,6]
[366525994,1750303838924,-460.0,0.00022465,6]
[366525996,1750303838936,-460.0,0.00022465,6]
[366525998,1750303838945,-460.0,0.00022465,6]
[366526000,1750303838955,-460.0,0.00022465,6]
[366526002,1750303838964,-460.0,0.00022465,6]
[366526004,1750303838974,-536.45747051,0.00022465,6]
[366526006,1750303838983,-460.0,0.00022465,6]
[366526008,1750303838992,-460.0,0.00022465,6]
[366526009,1750303839002,-460.0,0.00022465,6]
[366526010,1750303839011,-1292.1,0.00022465,6]
[366526012,1750303839021,-460.0,0.00022465,6]
[366526013,1750303839030,-460.0,0.00022465,6]
[366526014,1750303839039,-460.0,0.00022465,6]
[366526015,1750303839049,-585.85,0.00022465,6]
[366526016,1750303839058,-460.0,0.00022465,6]
[366526017,1750303839069,-460.0,0.00022465,6]
[366526018,1750303839079,-460.0,0.00022465,6]
[366526019,1750303839088,-460.0,0.00022465,6]
[366526020,1750303839098,-460.0,0.00022465,6]
[366526021,1750303839107,-460.0,0.00022465,6]
[366526022,1750303839116,-539.42514154,0.00022465,6]
[366526023,1750303839126,-460.0,0.00022465,6]
[366526024,1750303839135,-866.16,0.00022465,6]
[366526025,1750303839145,-460.0,0.00022465,6]
[366526026,1750303839155,-162.98412717,0.00022465,6]
[366526027,1750303839164,-460.0,0.00022465,6]
[366526028,1750303839174,-486.36,0.00022465,6]
[366526029,1750303839186,-2156.56,0.00022465,6]
[366526030,1750303839196,-460.0,0.00022465,6]
[366526031,1750303839205,-460.0,0.00022465,6]
[366526032,1750303839215,-460.0,0.00022465,6]
[366526033,1750303839227,-1114.64,0.00022465,6]
[366526034,1750303839237,-460.0,0.00022465,6]
[366526035,1750303839247,-460.0,0.00022465,6]
[366526036,1750303839259,-460.0,0.00022465,6]
[366526037,1750303839270,-460.0,0.00022465,6]
[366526038,1750303839279,-300.0,0.00022465,2]
[366526039,1750303839291,-460.0,0.00022465,6]
[366526040,1750303839301,-450.0,0.00022465,6]
[366526041,1750303839311,-438.82868839,0.00022465,6]
[366526042,1750303839320,-329.37059374,0.00022465,6]
[366526043,1750303839330,-1348.12,0.00022465,6]
[366526044,1750303839339,-460.0,0.00022465,6]
[366526050,1750303839349,-889.14,0.00022465,6]
[366526053,1750303839499,-460.0,0.00022465,6]
[366526054,1750303839509,-460.0,0.00022465,6]
[366526055,1750303839518,-460.0,0.00022465,6]
[366526056,1750303839528,-460.0,0.00022465,6]
[366526057,1750303839537,-460.0,0.00022465,6]
[366526058,1750303839547,-2826.02,0.00022465,6]
[366526059,1750303839556,-460.0,0.00022465,6]
[366526060,1750303839566,-472.38,0.00022465,6]
[366526061,1750303839575,-446.49333193,0.00022465,6]
[366526062,1750303839584,-460.0,0.00022465,6]
[366526063,1750303839594,-541.24,0.00022465,6]
[366526064,1750303839603,-460.0,0.00022465,6]
[366526065,1750303839612,-678.41,0.00022465,6]
[366526066,1750303839621,-460.0,0.00022465,6]
[366526067,1750303839632,-2648.85,0.00022465,6]
[366526068,1750303839643,-460.0,0.00022465,6]
[366526069,1750303839652,-277.392349,0.0002253,13]
[366526070,1750303839662,-1074.77516951,0.00022538,2]
[366526071,1750303839672,-420.0,0.00022586,2]
[366526072,1750303839681,-1097.33672489,0.00022645,2]
[366526073,1750303839691,-1000.0,0.00022721,2]
[366526074,1750303839700,-500.0,0.00022721,2]
[366526075,1750303839710,-1000.0,0.00022721,2]
[366526076,1750303839719,-1200.0,0.00022721,2]
[366526077,1750303839730,-1000.0,0.00022721,2]
[366526079,1750303839739,-1000.0,0.00022721,2]
[366526080,1750303839749,-272.94915338,0.00022739,6]
[366526081,1750303839758,-460.0,0.00022739,6]
[366526082,1750303839767,-230.0,0.00022739,6]
[366526083,1750303839777,-421.49316756,0.00022739,6]
[366526084,1750303839786,-460.0,0.00022739,6]
[366526085,1750303839796,-460.0,0.00022739,6]
[366526086,1750303839805,-460.0,0.00022739,6]
[366526087,1750303839815,-460.0,0.00022739,6]
[366526088,1750303839825,-460.0,0.00022739,6]
[366526089,1750303839834,-3065.16,0.00022739,6]
[366526090,1750303839843,-460.0,0.00022739,6]
[366526091,1750303839853,-341.61786065,0.00022739,6]
[366526092,1750303839862,-374.25466788,0.00022739,6]
[366526093,1750303839872,-474.54,0.00022739,6]
[366526094,1750303839881,-460.0,0.00022739,6]
[366526095,1750303839891,-460.0,0.00022739,6]
[366526096,1750303839900,-460.0,0.00022739,6]
[366526097,1750303839910,-460.0,0.00022739,6]
[366526098,1750303839928,-460.0,0.00022739,6]
[366526099,1750303839939,-370.0,0.00022739,6]
[366526100,1750303839949,-460.0,0.00022739,6]
[366526101,1750303839960,-446.70889776,0.00022739,6]
[366526102,1750303839969,-704.49,0.00022739,6]
[366526103,1750303839979,-460.0,0.00022739,6]
[366526104,1750303839989,-367.59210674,0.00022739,6]
[366526105,1750303840000,-460.0,0.00022739,6]
[366526106,1750303840010,-332.07239791,0.00022739,6]
[366526107,1750303840020,-460.0,0.00022739,6]
[366526108,1750303840030,-460.0,0.00022739,6]
[366526109,1750303840039,-460.0,0.00022739,6]
[366526110,1750303840049,-460.0,0.00022739,6]
[366526111,1750303840059,-460.0,0.00022739,6]
[366526112,1750303840068,-2365.35,0.00022739,6]
[366526113,1750303840078,-460.0,0.00022739,6]
[366526114,1750303840087,-460.0,0.00022739,6]
[366526115,1750303840096,-330.13266294,0.00022739,6]
[366526116,1750303840106,-460.0,0.00022739,6]
[366526117,1750303840115,-460.0,0.00022739,6]
[366526118,1750303840125,-460.0,0.00022739,6]
[366526119,1750303840135,-3205.54,0.00022739,6]
[366526120,1750303840144,-2170.71,0.00022739,6]
[366526121,1750303840153,-460.0,0.00022739,6]
[366526122,1750303840163,-420.18534832,0.00022739,6]
[366526123,1750303840174,-460.0,0.00022739,6]
[366526124,1750303840189,-543.79924584,0.00022739,6]
[366526125,1750303840199,-2919.94,0.00022739,6]
[366526126,1750303840208,-460.0,0.00022739,6]
[366526127,1750303840218,-2546.53,0.00022739,6]
[366526128,1750303840228,-709.64,0.00022739,6]
[366526129,1750303840239,-460.0,0.00022739,6]
[366526130,1750303840250,-783.12,0.00022739,6]
[366526131,1750303840260,-668.43,0.00022739,6]
[366526132,1750303840270,-962.97,0.00022739,6]
[366526133,1750303840279,-460.0,0.00022739,6]
[366526134,1750303840289,-460.0,0.00022739,6]
[366526135,1750303840298,-460.0,0.00022739,6]
[366526136,1750303840307,-460.0,0.00022739,6]
[366526137,1750303840317,-460.0,0.00022739,6]
[366526138,1750303840326,-460.0,0.00022739,6]
[366526139,1750303840335,-460.0,0.00022739,6]
[366526140,1750303840345,-460.0,0.00022739,6]
[366526141,1750303840355,-460.0,0.00022739,6]
[366526142,1750303840364,-1292.1,0.00022739,6]
[366526143,1750303840374,-460.0,0.00022739,6]
[366526144,1750303840383,-460.0,0.00022739,6]
[366526145,1750303840392,-460.0,0.00022739,6]
[366526146,1750303840402,-585.85,0.00022739,6]
[366526147,1750303840411,-460.0,0.00022739,6]
[366526148,1750303840421,-460.0,0.00022739,6]
[366526149,1750303840430,-460.0,0.00022739,6]
[366526150,1750303840441,-460.0,0.00022739,6]
[366526151,1750303840451,-460.0,0.00022739,6]
[366526152,1750303840460,-866.16,0.00022739,6]
[366526153,1750303840469,-460.0,0.00022739,6]
[366526154,1750303840479,-486.36,0.00022739,6]
[366526155,1750303840489,-460.0,0.00022739,6]
[366526156,1750303840498,-2156.56,0.00022739,6]
[366526157,1750303840507,-441.85477444,0.00022739,6]
[366526158,1750303840517,-1114.64,0.00022739,6]
[366526159,1750303840528,-460.0,0.00022739,6]
[366526160,1750303840539,-460.0,0.00022739,6]
[366526161,1750303840550,-460.0,0.00022739,6]
[366526162,1750303840560,-300.0,0.00022739,2]
[366526163,1750303840570,-203.12,0.00022739,6]
[366526164,1750303840580,-1348.12,0.00022739,6]
[366526165,1750303840590,-400.0,0.00022739,6]
[366526166,1750303840599,-889.14,0.00022739,6]
[366526167,1750303840609,-460.0,0.00022739,6]
[366526168,1750303840619,-460.0,0.00022739,6]
[366526169,1750303840628,-460.0,0.00022739,6]
[366526170,1750303840638,-460.0,0.00022739,6]
[366526171,1750303840647,-460.0,0.00022739,6]
[366526172,1750303840657,-2826.02,0.00022739,6]
[366526173,1750303840667,-460.0,0.00022739,6]
[366526174,1750303840676,-472.38,0.00022739,6]
[366526175,1750303840686,-420.0,0.00022739,6]
[366526176,1750303840695,-347.35323688,0.00022739,6]
[366526177,1750303840832,-193.88676312,0.00022739,6]
[366526178,1750303840841,-460.0,0.00022739,6]
[366526179,1750303840851,-678.41,0.00022739,6]
[366526180,1750303840860,-411.37805891,0.00022739,6]
[366526181,1750303840869,-2648.85,0.00022739,6]
[366526182,1750303840879,-460.0,0.00022739,6]
[366526183,1750303840889,-321.14048195,0.00022747,2]
[366526184,1750303840898,-230.0259007,0.00022769,2]
[366526185,1750303840907,-49.79497496,0.00022779,2]
[366526186,1750303840919,-1906.97080641,0.00022779,2]
[366526187,1750303840931,-1767.0256792,0.00022779,2]
[366526188,1750303841211,-460.0,0.00021917,6]
[366526189,1750303841221,-460.0,0.00022191,6]
[366526190,1750303841231,-2040.48881793,0.00022465,2]
[366526191,1750303841240,-460.0,0.00022465,6]
[366526192,1750303841249,-460.0,0.00022739,6]
[366526193,1750303841259,-8820.89384816,0.00022779,2]
[366526194,1750303841269,-213.47708638,0.0002279,2]
[366526195,1750303841279,-160.0,0.0002279,2]
[366526196,1750303841288,-500.0,0.00022879,2]
[366526197,1750303841297,-513.82596414,0.00022879,2]
[366526198,1750303841307,-749.10409586,0.00022952,2]
[366526199,1750303841316,-1074.77516951,0.00022986,2]
[366526200,1750303841325,-15697.74759956,0.00023,2]
[366526201,1750303841335,-5000.0,0.00023013,2]
[366526202,1750303841345,-460.0,0.00023013,6]
[366526203,1750303841354,-410.0,0.00023013,6]
[366526204,1750303841363,-3065.16,0.00023013,6]
[366526205,1750303841373,-460.0,0.00023013,6]
[366526206,1750303841382,-474.54,0.00023013,6]
[366526207,1750303841391,-460.0,0.00023013,6]
[366526208,1750303841400,-460.0,0.00023013,6]
[366526209,1750303841410,-460.0,0.00023013,6]
[366526210,1750303841419,-460.0,0.00023013,6]
[366526211,1750303841428,-460.0,0.00023013,6]
[366526212,1750303841437,-460.0,0.00023013,6]
[366526213,1750303841446,-704.49,0.00023013,6]
[366526214,1750303841455,-348.0534061,0.00023013,6]
[366526215,1750303841465,-460.0,0.00023013,6]
[366526216,1750303841474,-460.0,0.00023013,6]
[366526217,1750303841483,-460.0,0.00023013,6]
[366526218,1750303841492,-460.0,0.00023013,6]
[366526219,1750303841501,-460.0,0.00023013,6]
[366526220,1750303841511,-460.0,0.00023013,6]
[366526221,1750303841523,-3205.54,0.00023013,6]
[366526222,1750303841533,-2170.71,0.00023013,6]
[366526223,1750303841542,-460.0,0.00023013,6]
[366526224,1750303841551,-280.0,0.00023013,6]
[366526225,1750303841560,-2919.94,0.00023013,6]
[366526226,1750303841571,-431.93178584,0.00023013,6]
[366526227,1750303841579,-2546.53,0.00023013,6]
[366526228,1750303841588,-709.64,0.00023013,6]
[366526229,1750303841598,-460.0,0.00023013,6]
[366526230,1750303841607,-783.12,0.00023013,6]
[366526231,1750303841616,-668.43,0.00023013,6]
[366526232,1750303841625,-962.97,0.00023013,6]
[366526233,1750303841635,-460.0,0.00023013,6]
[366526234,1750303841645,-460.0,0.00023013,6]
[366526235,1750303841655,-380.0,0.00023013,6]
[366526236,1750303841665,-460.0,0.00023013,6]
[366526237,1750303841674,-460.0,0.00023013,6]
[366526238,1750303841684,-460.0,0.00023013,6]
[366526239,1750303841693,-460.0,0.00023013,6]
[366526240,1750303841703,-460.0,0.00023013,6]
[366526241,1750303841713,-460.0,0.00023013,6]
[366526242,1750303841722,-1292.1,0.00023013,6]
[366526243,1750303841733,-460.0,0.00023013,6]
[366526244,1750303841742,-460.0,0.00023013,6]
[366526245,1750303841752,-460.0,0.00023013,6]
[366526246,1750303841761,-585.85,0.00023013,6]
[366526247,1750303841770,-460.0,0.00023013,6]
[366526248,1750303841779,-460.0,0.00023013,6]
[366526249,1750303841790,-460.0,0.00023013,6]
[366526250,1750303841799,-460.0,0.00023013,6]
[366526251,1750303841808,-866.16,0.00023013,6]
[366526252,1750303841818,-486.36,0.00023013,6]
[366526253,1750303841827,-460.0,0.00023013,6]
[366526254,1750303841837,-2156.56,0.00023013,6]
[366526255,1750303841846,-1114.64,0.00023013,6]
[366526256,1750303841856,-460.0,0.00023013,6]
[366526257,1750303841865,-460.0,0.00023013,6]
[366526258,1750303841875,-460.0,0.00023013,6]
[366526259,1750303841885,-300.0,0.00023013,2]
[366526260,1750303841894,-1348.12,0.00023013,6]
[366526261,1750303841904,-889.14,0.00023013,6]
[366526262,1750303841914,-460.0,0.00023013,6]
[366526263,1750303841923,-460.0,0.00023013,6]
[366526264,1750303841933,-460.0,0.00023013,6]
[366526265,1750303841942,-460.0,0.00023013,6]
[366526266,1750303841951,-460.0,0.00023013,6]
[366526267,1750303841961,-2826.02,0.00023013,6]
[366526268,1750303841970,-460.0,0.00023013,6]
[366526269,1750303841981,-472.38,0.00023013,6]
[366526270,1750303841990,-541.24,0.00023013,6]
[366526271,1750303842125,-460.0,0.00023013,6]
[366526272,1750303842135,-678.41,0.00023013,6]
[366526273,1750303842146,-2648.85,0.00023013,6]
[366526274,1750303842156,-460.0,0.00023013,6]
[366526275,1750303842165,-460.0,0.00023013,6]
[366526276,1750303842174,-441.94,0.000231,2]
[366526277,1750303842189,-158.55143993,0.00023172,2]
[366526278,1750303842199,-793.65178421,0.0002318,2]
[366526279,1750303842209,-321.14048195,0.00023212,2]
[366526280,1750303842218,-424.78309573,0.00023237,2]
[366526281,1750303842229,-845.93775772,0.00023237,2]
[366526282,1750303842238,-836.1357872,0.00023237,2]
[366526283,1750303842247,-160.0,0.00023237,2]
[366526284,1750303842259,-277.392349,0.0002325,4]
[366526285,1750303842268,-261.11899515,0.00023268,2]
[366526286,1750303842278,-1500.0,0.00023268,2]
[366526287,1750303842287,-1800.0,0.00023268,2]
[366526288,1750303842296,-1500.0,0.00023268,2]
[366526289,1750303842306,-705.0,0.00023285,2]
[366526290,1750303842315,-460.0,0.00023287,6]
[366526291,1750303842325,-3065.16,0.00023287,6]
[366526292,1750303842335,-474.54,0.00023287,6]
[366526294,1750303842344,-460.0,0.00023287,6]
[366526295,1750303842353,-190.0,0.00023287,6]
[366526296,1750303842363,-460.0,0.00023287,6]
[366526297,1750303842373,-356.32095696,0.00023287,6]
[366526298,1750303842383,-704.49,0.00023287,6]
[366526299,1750303842392,-460.0,0.00023287,6]
[366526300,1750303842402,-460.0,0.00023287,6]
[366526301,1750303842411,-460.0,0.00023287,6]
[366526302,1750303842421,-460.0,0.00023287,6]
[366526303,1750303842431,-460.0,0.00023287,6]
[366526304,1750303842440,-3205.54,0.00023287,6]
[366526305,1750303842450,-2170.71,0.00023287,6]
[366526307,1750303842459,-460.0,0.00023287,6]
[366526308,1750303842469,-2919.94,0.00023287,6]
[366526309,1750303842480,-2546.53,0.00023287,6]
[366526310,1750303842489,-709.64,0.00023287,6]
[366526311,1750303842499,-783.12,0.00023287,6]
[366526312,1750303842508,-668.43,0.00023287,6]
[366526314,1750303842518,-962.97,0.00023287,6]
[366526315,1750303842528,-472.73826551,0.00023287,6]
[366526316,1750303842537,-460.0,0.00023287,6]
[366526317,1750303842547,-460.0,0.00023287,6]
[366526318,1750303842556,-460.0,0.00023287,6]
[366526319,1750303842566,-460.0,0.00023287,6]
[366526320,1750303842575,-460.0,0.00023287,6]
[366526321,1750303842584,-1292.1,0.00023287,6]
[366526322,1750303842594,-460.0,0.00023287,6]
[366526323,1750303842603,-460.0,0.00023287,6]
[366526325,1750303842613,-460.0,0.00023287,6]
[366526327,1750303842622,-585.85,0.00023287,6]
[366526330,1750303842631,-460.0,0.00023287,6]
[366526332,1750303842640,-460.0,0.00023287,6]
[366526334,1750303842650,-460.0,0.00023287,6]
[366526335,1750303842659,-460.0,0.00023287,6]
[366526336,1750303842668,-866.16,0.00023287,6]
[366526337,1750303842677,-486.36,0.00023287,6]
[366526338,1750303842687,-460.0,0.00023287,6]
[366526339,1750303842696,-2156.56,0.00023287,6]
[366526340,1750303842705,-1114.64,0.00023287,6]
[366526341,1750303842715,-460.0,0.00023287,6]
[366526342,1750303842726,-460.0,0.00023287,6]
[366526343,1750303842736,-460.0,0.00023287,6]
[366526344,1750303842745,-300.0,0.00023287,2]
[366526345,1750303842755,-1348.12,0.00023287,6]
[366526347,1750303842765,-889.14,0.00023287,6]
[366526348,1750303842775,-460.0,0.00023287,6]
[366526349,1750303842784,-460.0,0.00023287,6]
[366526350,1750303842794,-460.0,0.00023287,6]
[366526351,1750303842803,-460.0,0.00023287,6]
[366526352,1750303842812,-460.0,0.00023287,6]
[366526353,1750303842822,-2826.02,0.00023287,6]